bitfinex/quotes_BTCUSD_20250530
["timestamp","ask_amount","ask_price","bid_price","bid_amount"]
[1748648730343,0.0385166,103980.0,103970.0,0.22121671]
[1748648730550,0.01928214,103980.0,103970.0,0.31765563]
[1748648730771,0.028899,103980.0,103970.0,0.31765563]
[1748648730984,0.23086072,103980.0,103970.0,0.08682141]
[1748648731200,0.03847132,103970.0,103960.0,0.22223789]
[1748648731436,0.04808947,103970.0,103960.0,0.22223789]
[1748648731617,0.02885381,103970.0,103960.0,0.23185651]
[1748648731873,0.02885381,103970.0,103960.0,0.23085651]
[1748648732089,0.01923529,103970.0,103960.0,0.32336773]
[1748648732752,0.22672775,103980.0,103970.0,0.20198115]
[1748648732970,0.21162775,103980.0,103970.0,0.21159893]
[1748648733186,0.21162775,103980.0,103960.0,0.7218445]
[1748648733374,0.21159902,103970.0,103960.0,0.30413069]
[1748648733624,0.22121653,103970.0,103960.0,0.21161947]
[1748648733835,0.02885326,103970.0,103960.0,0.23085642]
[1748648734287,0.01923529,103970.0,103960.0,0.23085642]
[1748648734513,0.2342108,103980.0,103970.0,0.21159902]
[1748648734734,0.22324377,103980.0,103970.0,0.20198124]
[1748648734945,0.03089909,103980.0,103970.0,0.22121653]
[1748648735161,0.05013346,103980.0,103970.0,0.22121662]
[1748648735404,0.04051688,103980.0,103970.0,0.21159902]
[1748648735594,0.03090021,103980.0,103970.0,0.22121709]
[1748648735811,0.01928251,103980.0,103970.0,0.24045238]
[1748648736265,4.889e-05,103980.0,103970.0,0.69513847]
[1748648736487,4.889e-05,103980.0,103970.0,1.12579277]
[1748648736715,0.00204889,103980.0,103970.0,1.15699277]
[1748648737590,4.889e-05,103980.0,103970.0,1.15699277]
[1748648737820,4.889e-05,103980.0,103970.0,0.38389656]
[1748648738091,0.01928196,103980.0,103970.0,1.09822859]
[1748648738311,4.889e-05,103980.0,103970.0,1.09822859]
[1748648738533,4.889e-05,103980.0,103970.0,1.19408289]
[1748648738750,4.889e-05,103980.0,103970.0,1.20908289]
[1748648738966,4.889e-05,103980.0,103970.0,1.31699411]
[1748648740069,4.889e-05,103980.0,103970.0,1.65699411]
[1748648740738,4.889e-05,103980.0,103970.0,1.68427681]
[1748648741167,4.889e-05,103980.0,103970.0,1.23459681]
[1748648741383,0.00966529,103980.0,103970.0,1.62551411]
[1748648741633,0.01928178,103980.0,103970.0,1.62551411]
[1748648741878,4.889e-05,103980.0,103970.0,1.62551411]
[1748648742091,0.00966529,103980.0,103970.0,1.07787293]
[1748648742311,0.01928187,103980.0,103970.0,1.09049071]
[1748648742762,0.02889873,103980.0,103970.0,0.6823945]
[1748648743012,0.02889864,103980.0,103970.0,1.09449071]
[1748648743254,0.02889864,103980.0,103970.0,1.18700193]
[1748648743475,0.25534313,103990.0,103980.0,0.20196182]
[1748648743687,0.25583203,103990.0,103980.0,0.20196182]
[1748648744125,0.22119535,103980.0,103970.0,0.41537255]
[1748648744349,0.22119535,103980.0,103970.0,0.44022627]
[1748648744350,0.02885067,103980.0,103970.0,0.44022627]
[1748648744650,0.0384679,103980.0,103970.0,0.44984387]
[1748648744863,0.0384679,103980.0,103970.0,0.32634627]
[1748648745090,0.0384679,103980.0,103970.0,0.31372858]
[1748648745309,0.23081258,103980.0,103970.0,0.33296405]
[1748648745535,0.0384679,103980.0,103970.0,0.33296341]
[1748648745757,0.02885067,103980.0,103970.0,0.33296295]
[1748648746015,0.03846781,103980.0,103970.0,0.33596295]
[1748648746222,0.01923307,103980.0,103970.0,0.73444073]
[1748648746442,0.00961649,103980.0,103970.0,0.73444073]
[1748648746656,0.29146435,103990.0,103980.0,0.21157867]
[1748648746907,0.29146435,103990.0,103980.0,0.20196191]
[1748648747128,0.00961695,103980.0,103970.0,0.72882304]
[1748648747411,0.00961658,103980.0,103970.0,0.72882304]
[1748648747672,0.01923353,103980.0,103970.0,0.72482304]
[1748648747929,0.01923325,103980.0,103970.0,0.72482304]
[1748648748188,0.01923325,103980.0,103970.0,0.72182304]
[1748648748398,0.01923316,103980.0,103970.0,0.72182304]
[1748648748619,0.02885002,103980.0,103970.0,0.72182304]
[1748648748846,0.04800343,103990.0,103980.0,0.22119507]
[1748648749059,0.05761918,103990.0,103980.0,0.66945982]
[1748648749273,0.07685123,103990.0,103980.0,0.66945982]
[1748648749518,0.05761918,103990.0,103980.0,0.66945982]
[1748648749733,0.03838796,103990.0,103980.0,0.66945982]
[1748648750148,0.04800343,103990.0,103980.0,0.66945982]
[1748648750355,0.05695111,103990.0,103980.0,0.67145982]
[1748648750824,0.06656677,103990.0,103980.0,0.67145982]
[1748648751046,0.02556666,103990.0,103980.0,0.67145982]
[1748648751266,0.02556655,103990.0,103980.0,0.26336361]
[1748648751482,0.02556655,103990.0,103980.0,0.67145982]
[1748648751698,0.0351823,103990.0,103980.0,0.67245982]
[1748648751913,0.0351823,103990.0,103980.0,0.04316854]
[1748648751914,0.2205057,103990.0,103980.0,0.04316854]
[1748648752133,0.23610572,103990.0,103980.0,0.24513045]
[1748648752348,0.23610572,103990.0,103980.0,0.003]
[1748648752349,0.25180572,103990.0,103980.0,0.003]
[1748648752596,0.25181615,103990.0,103980.0,0.21457877]
[1748648752808,0.24285814,103990.0,103980.0,0.22419563]
[1748648753237,0.24285814,103990.0,103980.0,0.22219563]
[1748648753659,0.24285814,103990.0,103980.0,0.01061714]
[1748648753868,0.24220788,103990.0,103980.0,0.21257868]
[1748648754077,0.24220788,103990.0,103980.0,0.09351122]
[1748648754293,0.24220788,103990.0,103980.0,0.01061723]
[1748648754713,0.2332423,103990.0,103980.0,0.21257886]
[1748648754916,0.2332423,103990.0,103980.0,0.21257895]
[1748648755123,0.2332423,103990.0,103980.0,0.21257905]
[1748648755348,0.22362618,103990.0,103980.0,0.001]
[1748648755555,0.23259813,103990.0,103980.0,0.001]
[1748648755987,0.23259815,103990.0,103980.0,0.001]
[1748648756873,0.23260729,103990.0,103980.0,0.001]
[1748648757128,0.22362618,103990.0,103980.0,0.001]
[1748648757345,0.23260729,103990.0,103980.0,0.001]
[1748648757559,0.22362618,103990.0,103980.0,0.001]
[1748648757776,0.23260729,103990.0,103980.0,0.001]
[1748648759338,0.23261329,103990.0,103980.0,0.001]
[1748648759560,0.31948048,103990.0,103980.0,0.001]
[1748648759770,0.35733929,103990.0,103980.0,0.001]
[1748648760209,0.06915881,103990.0,103980.0,0.01061704]
[1748648760423,0.23977772,103990.0,103980.0,0.21257858]
[1748648760640,0.23016216,103990.0,103980.0,0.20296172]
[1748648760852,0.22054632,103990.0,103980.0,0.19334468]
[1748648761065,0.22054632,103990.0,103980.0,0.21257886]
[1748648761507,0.22054632,103990.0,103980.0,0.20296191]
[1748648761722,0.21155851,103990.0,103980.0,0.30459829]
[1748648761966,0.01860758,103990.0,103980.0,0.31421515]
[1748648762191,0.03783926,103990.0,103980.0,0.32383173]
[1748648762615,0.02884752,103990.0,103980.0,0.32383173]
[1748648762838,0.03784066,103990.0,103980.0,0.32383173]
[1748648763065,0.22055128,103990.0,103980.0,0.001]
[1748648763315,0.25245285,103990.0,103980.0,0.001]
[1748648763523,1.02274715,103990.0,103980.0,0.001]
[1748648764375,1.05668927,103990.0,103980.0,0.001]
[1748648765435,1.05668748,103990.0,103980.0,0.001]
[1748648765654,1.0566872,103990.0,103980.0,0.001]
[1748648766538,1.0566873,103990.0,103980.0,0.001]
[1748648767202,1.04769188,103990.0,103980.0,0.001]
[1748648767835,1.05668543,103990.0,103980.0,0.001]
[1748648768048,1.05664543,103990.0,103980.0,0.001]
[1748648768258,1.0227058,103990.0,103980.0,0.001]
[1748648768516,1.01371244,103990.0,103980.0,0.001]
[1748648768729,1.02270479,103990.0,103980.0,0.001]
[1748648768940,1.01371244,103990.0,103980.0,0.001]
[1748648769152,1.03336918,103990.0,103980.0,0.001]
[1748648769333,1.04236152,103990.0,103980.0,0.001]
[1748648769570,1.02270478,103990.0,103980.0,0.001]
[1748648769846,1.02270494,103990.0,103980.0,0.001]
[1748648770056,1.02270467,103990.0,103980.0,0.001]
[1748648770276,1.02270447,103990.0,103980.0,0.001]
[1748648770485,1.02270407,103990.0,103980.0,0.001]
[1748648770699,1.01371244,103990.0,103980.0,0.001]
[1748648770906,1.02270567,103990.0,103980.0,0.001]
[1748648771339,1.02266581,103990.0,103980.0,0.001]
[1748648771771,0.5056,104000.0,103980.0,0.21257793]
[1748648771982,0.01923178,103990.0,103980.0,0.31114032]
[1748648772198,0.03784108,103990.0,103980.0,0.31114032]
[1748648772413,0.047457,103990.0,103980.0,0.30152383]
[1748648772845,0.05707321,103990.0,103980.0,0.20196182]
[1748648773060,0.23978428,103990.0,103980.0,0.22219581]
[1748648773480,0.23016874,103990.0,103980.0,0.23181267]
[1748648773907,0.22117481,103990.0,103980.0,0.23181267]
[1748648774119,0.23016871,103990.0,103980.0,0.22219581]
[1748648774334,0.22055262,103990.0,103980.0,0.22119581]
[1748648774549,0.22055308,103990.0,103980.0,0.27115542]
[1748648774761,0.03784216,103990.0,103980.0,0.29038867]
[1748648775014,0.04745837,103990.0,103980.0,0.29038867]
[1748648775228,0.04745837,103990.0,103980.0,0.29138867]
[1748648775442,0.03846392,103990.0,103980.0,0.28177209]
[1748648775659,0.05707453,103990.0,103980.0,0.28177209]
[1748648775868,0.04745787,103990.0,103980.0,0.29138867]
[1748648776340,0.01923159,103990.0,103980.0,0.29138867]
[1748648776543,0.0378419,103990.0,103980.0,0.29138867]
[1748648776760,0.03784192,103990.0,103980.0,0.29138867]
[1748648776974,0.03784192,103990.0,103980.0,0.32398867]
[1748648777185,0.70143844,104000.0,103990.0,0.21155832]
[1748648777410,0.73927783,104000.0,103990.0,0.21155832]
[1748648777625,0.72004791,104000.0,103990.0,0.20194239]
[1748648777842,0.20194239,103990.0,103980.0,0.11472]
[1748648778052,0.22675851,103990.0,103980.0,0.11472]
[1748648778262,0.22675851,103990.0,103980.0,0.31568182]
[1748648778473,0.21714239,103990.0,103980.0,0.31568182]
[1748648778700,0.21714239,103990.0,103980.0,0.32529886]
[1748648778916,0.21157849,103980.0,103970.0,0.21348423]
[1748648779135,0.20196172,103980.0,103970.0,0.02112105]
[1748648779355,0.21159921,103970.0,103960.0,0.74262096]
[1748648779646,0.21159921,103970.0,103960.0,0.75272866]
[1748648779877,0.02885363,103970.0,103960.0,0.34694737]
[1748648780112,0.01923566,103970.0,103960.0,0.35656599]
[1748648780355,0.02885317,103970.0,103960.0,0.36618442]
[1748648780602,0.03847114,103970.0,103960.0,0.34506309]
[1748648780821,0.02885317,103970.0,103960.0,0.35468152]
[1748648781051,0.04808929,103970.0,103960.0,0.35468152]
[1748648781283,0.04808929,103970.0,103960.0,0.34506309]
[1748648781495,0.03847178,103970.0,103960.0,0.33844428]
[1748648781709,0.23083496,103970.0,103960.0,0.32882576]
[1748648781919,0.01923566,103970.0,103960.0,0.3520629]
[1748648782139,0.03847169,103970.0,103960.0,0.3520629]
[1748648782357,0.01923566,103970.0,103960.0,0.44457412]
[1748648782646,0.01923529,103970.0,103960.0,0.44457412]
[1748648782857,0.0192352,103970.0,103960.0,0.44457412]
[1748648783718,0.21159884,103970.0,103960.0,0.1212089]
[1748648783935,0.18579884,103970.0,103960.0,0.1212089]
[1748648784784,0.18579884,103970.0,103960.0,0.13082798]
[1748648785189,0.19541681,103970.0,103960.0,0.13082789]
[1748648785468,0.30747111,103970.0,103960.0,0.0074889]
[1748648786547,0.30747111,103970.0,103960.0,0.20548957]
[1748648786789,0.0384704,103970.0,103960.0,0.27600541]
[1748648786995,0.04808855,103970.0,103960.0,0.2760056]
[1748648787184,0.03847114,103970.0,103960.0,0.2760056]
[1748648787459,0.22121681,103970.0,103960.0,0.21210846]
[1748648787903,0.22121681,103970.0,103960.0,0.21310846]
[1748648788118,0.22121681,103970.0,103960.0,0.22272726]
[1748648788327,0.22121681,103970.0,103960.0,0.22472726]
[1748648788754,0.22121681,103970.0,103960.0,0.23434597]
[1748648789481,1.33674928,104000.0,103970.0,0.19236318]
[1748648789482,0.5211,104000.0,103970.0,0.19236318]
[1748648789693,0.65479346,104000.0,103990.0,0.23078992]
[1748648789899,0.56855454,104000.0,103990.0,0.22117435]
[1748648790114,0.55245454,104000.0,103990.0,0.22117435]
[1748648790360,0.5181211,104000.0,103990.0,0.2307901]
[1748648790572,0.52773629,104000.0,103990.0,0.27406367]
[1748648791210,0.72965936,104000.0,103990.0,0.0096163]
[1748648791431,0.00961686,103980.0,103970.0,0.74716111]
[1748648791646,0.01923344,103980.0,103970.0,0.43227659]
[1748648791865,0.01923344,103980.0,103970.0,0.21348405]
[1748648792085,0.02885058,103980.0,103970.0,0.24233704]
[1748648792298,0.01923344,103980.0,103970.0,0.24433704]
[1748648792507,0.01923344,103980.0,103970.0,0.29897547]
[1748648792508,0.02885039,103980.0,103970.0,0.29897547]
[1748648792740,0.00961658,103980.0,103970.0,0.29897547]
[1748648792959,0.03783944,103990.0,103980.0,0.22119526]
[1748648793173,0.04745538,103990.0,103980.0,0.22119526]
[1748648793392,0.04745522,103990.0,103980.0,0.31104806]
[1748648793615,0.04745522,103990.0,103980.0,0.22119526]
[1748648794065,0.03846354,103990.0,103980.0,0.21157868]
[1748648794276,0.22117416,103990.0,103980.0,0.21157868]
[1748648794489,0.23016554,103990.0,103980.0,0.21157868]
[1748648794698,0.23016556,103990.0,103980.0,0.22119545]
[1748648794901,0.03783938,103990.0,103980.0,0.23081212]
[1748648795103,0.01923177,103990.0,103980.0,0.2404287]
[1748648795320,0.02884798,103990.0,103980.0,0.2404287]
[1748648795570,0.01923122,103990.0,103980.0,0.26677047]
[1748648795770,0.00961556,103990.0,103980.0,0.26677047]
[1748648795975,0.0192314,103990.0,103980.0,0.26677047]
[1748648796183,0.00961556,103990.0,103980.0,0.26677047]
[1748648796395,0.0192314,103990.0,103980.0,0.26677047]
[1748648796837,0.02884743,103990.0,103980.0,0.26677047]
[1748648797060,0.04807976,103990.0,103970.0,0.34454185]
[1748648797280,0.02885298,103970.0,103960.0,0.69617376]
[1748648797498,0.0288528,103970.0,103960.0,0.37171219]
[1748648797720,0.03847067,103970.0,103960.0,0.37171219]
[1748648797969,0.03847067,103970.0,103960.0,0.35636813]
[1748648798179,0.04808873,103970.0,103960.0,0.35636813]
[1748648798605,0.04808956,103970.0,103960.0,0.35636813]
[1748648798816,0.03847141,103970.0,103960.0,0.33713118]
[1748648799034,0.24369921,103970.0,103960.0,0.0139918]
[1748648799276,0.23408124,103970.0,103960.0,0.0169918]
[1748648799484,0.23408124,103970.0,103960.0,0.0054889]
[1748648800571,0.18408124,103970.0,103960.0,0.0054889]
[1748648800780,0.27993554,103970.0,103960.0,0.0054889]
[1748648801224,0.27993554,103970.0,103960.0,0.0034889]
[1748648801430,0.27993554,103970.0,103960.0,0.0004889]
[1748648801689,0.23893554,103970.0,103960.0,0.0034889]
[1748648801922,0.92751639,103970.0,103960.0,0.0034889]
[1748648802761,0.92751639,103970.0,103960.0,0.0004889]
[1748648802976,1.22751639,103970.0,103960.0,0.0004889]
[1748648804880,1.22751639,103970.0,103910.0,0.28997627]
[1748648804881,0.02886723,103920.0,103910.0,0.28997627]
[1748648805102,0.22132296,103920.0,103910.0,0.08792264]
[1748648805315,0.22132296,103920.0,103910.0,0.27851742]
[1748648805528,0.22132361,103920.0,103910.0,0.08604345]
[1748648805745,0.2117012,103920.0,103910.0,0.08604345]
[1748648805961,0.2117012,103920.0,103910.0,0.28814132]
[1748648806174,0.2117012,103920.0,103910.0,0.31043688]
[1748648806388,0.2117012,103920.0,103910.0,0.31243688]
[1748648807586,0.01924334,103930.0,103920.0,0.21170083]
[1748648807807,0.1343408,103930.0,103920.0,0.27181214]
[1748648808233,0.1343408,103930.0,103920.0,0.28143437]
[1748648808450,0.1343408,103930.0,103920.0,0.23094538]
[1748648808666,0.1343408,103930.0,103920.0,0.22132315]
[1748648808892,0.1343408,103930.0,103920.0,0.21370083]
[1748648809112,0.31715671,103930.0,103920.0,0.003]
[1748648809338,0.20205907,103930.0,103920.0,0.003]
[1748648809561,0.21845907,103930.0,103920.0,0.003]
[1748648809782,0.23465907,103930.0,103920.0,0.003]
[1748648810942,0.00962223,103920.0,103910.0,0.24063945]
[1748648811156,0.01924464,103920.0,103910.0,0.31894958]
[1748648811570,0.49952037,103940.0,103930.0,0.21168046]
[1748648811777,0.53800262,103940.0,103930.0,0.22130185]
[1748648812006,0.52838169,103940.0,103930.0,0.23092306]
[1748648812235,0.53800253,103940.0,103930.0,0.23092306]
[1748648812447,0.52838169,103940.0,103930.0,0.23092306]
[1748648812862,0.52838169,103940.0,103930.0,0.23292306]
[1748648812863,0.51876094,103940.0,103930.0,0.23292306]
[1748648813071,0.52838169,103940.0,103930.0,0.23292306]
[1748648813308,0.72080122,103940.0,103930.0,0.21368064]
[1748648813504,0.71118085,103940.0,103930.0,0.22330213]
[1748648813714,0.71118085,103940.0,103930.0,0.002]
[1748648813929,0.69193963,103940.0,103930.0,0.002]
[1748648814142,0.69193963,103940.0,103930.0,0.01162176]
[1748648814357,0.6823187,103940.0,103930.0,0.003]
[1748648814632,0.69193945,103940.0,103930.0,0.01262176]
[1748648814853,0.69193945,103940.0,103930.0,0.003]
[1748648814854,0.72453945,103940.0,103930.0,0.003]
[1748648815081,0.8349346,103940.0,103930.0,0.003]
[1748648815524,0.8349346,103940.0,103930.0,0.001]
[1748648815746,0.82531385,103940.0,103920.0,0.21169762]
[1748648815997,0.82531385,103940.0,103920.0,0.30420884]
[1748648816221,0.82531385,103940.0,103920.0,0.32345292]
[1748648816222,0.01924214,103930.0,103920.0,0.32345292]
[1748648816443,0.50914168,103940.0,103930.0,0.20205888]
[1748648816654,0.85272215,103940.0,103930.0,0.22130195]
[1748648816857,0.84310122,103940.0,103930.0,0.25451149]
[1748648817054,0.84310122,103940.0,103930.0,0.2641327]
[1748648817263,0.02886418,103930.0,103920.0,0.22132039]
[1748648817416,0.02886678,103920.0,103910.0,1.35687663]
[1748648817623,0.02886668,103920.0,103910.0,1.37612303]
[1748648817861,0.01924418,103920.0,103910.0,1.37612303]
[1748648818013,0.02886659,103920.0,103910.0,1.37612303]
[1748648818639,0.02886659,103920.0,103910.0,1.37712303]
[1748648818849,0.23094566,103920.0,103910.0,1.21277019]
[1748648819049,0.02886724,103920.0,103910.0,1.23201659]
[1748648819465,0.02886724,103920.0,103910.0,1.20314676]
[1748648819669,0.22132297,103920.0,103910.0,1.00104889]
[1748648819919,0.02886724,103920.0,103910.0,1.21277019]
[1748648820091,0.02886724,103920.0,103910.0,1.23201658]
[1748648820310,0.01924464,103920.0,103910.0,1.32452781]
[1748648820513,0.21170074,103920.0,103910.0,1.00304889]
[1748648820712,0.22730074,103920.0,103910.0,1.00304889]
[1748648821609,0.0258213,103930.0,103920.0,0.02886723]
[1748648821835,0.0258213,103930.0,103920.0,0.21170083]
[1748648821836,0.23092269,103930.0,103920.0,0.21170083]
[1748648822044,0.20916613,103930.0,103920.0,0.09251122]
[1748648822273,0.23074455,103930.0,103920.0,0.09251122]
[1748648823109,0.20207851,103920.0,103910.0,1.00204889]
[1748648823312,0.21827851,103920.0,103910.0,1.00204889]
[1748648823550,0.33013281,103920.0,103910.0,1.00204889]
[1748648823766,0.33013281,103920.0,103910.0,1.00004889]
[1748648824396,0.66405281,103920.0,103910.0,1.00004889]
[1748648824605,0.66405281,103920.0,103910.0,1.00104889]
[1748648824823,0.66405281,103920.0,103910.0,1.09256011]
[1748648825046,0.33392,103920.0,103910.0,1.28503436]
[1748648825262,0.35312454,103920.0,103910.0,1.30428094]
[1748648825487,0.0192427,103930.0,103920.0,0.22132296]
[1748648825700,0.00962102,103930.0,103920.0,0.22132296]
[1748648825906,0.02886372,103930.0,103920.0,0.31383418]
[1748648826166,0.2309226,103930.0,103920.0,0.29458964]
[1748648826422,0.2309226,103930.0,103910.0,1.7442766]
[1748648826423,0.01924418,103920.0,103910.0,1.31390438]
[1748648826679,0.01924418,103920.0,103910.0,1.34580438]
[1748648827638,0.01924408,103920.0,103910.0,1.34580438]
[1748648828157,0.20207833,103920.0,103910.0,1.00004889]
[1748648828392,0.21807833,103920.0,103910.0,1.00304889]
[1748648828620,0.20845573,103920.0,103910.0,1.00304889]
[1748648828849,0.20845573,103920.0,103910.0,1.0126726]
[1748648829067,0.19245573,103920.0,103910.0,1.0126726]
[1748648829513,0.19245573,103920.0,103910.0,1.10518382]
[1748648829747,0.15145573,103920.0,103910.0,1.10518382]
[1748648829996,0.01924436,103920.0,103910.0,1.32652771]
[1748648830229,0.0192427,103930.0,103920.0,0.23094537]
[1748648830457,0.02886437,103930.0,103920.0,0.23094537]
[1748648830692,0.51876233,103940.0,103930.0,0.21168027]
[1748648830911,1.04498103,103940.0,103930.0,0.20205888]
[1748648831396,1.03536038,103940.0,103920.0,0.33651149]
[1748648831627,0.21168037,103930.0,103920.0,0.32041242]
[1748648831858,0.0192427,103930.0,103920.0,0.34927946]
[1748648832348,0.384882,103950.0,103930.0,0.20205842]
[1748648832597,0.05774127,103950.0,103940.0,0.22128057]
[1748648832825,0.25014146,103950.0,103940.0,0.20203954]
[1748648833057,0.21163992,103950.0,103940.0,0.21166029]
[1748648833291,0.21163992,103950.0,103940.0,0.23090141]
[1748648833741,0.01923973,103950.0,103940.0,0.23090141]
[1748648834004,0.21463992,103950.0,103940.0,0.22128094]
[1748648834460,0.03185909,103950.0,103940.0,0.24052178]
[1748648834687,0.03185909,103950.0,103940.0,0.23090141]
[1748648834930,0.03485909,103950.0,103940.0,0.2309015]
[1748648835207,0.034859,103950.0,103940.0,0.28069032]
[1748648835422,0.044479,103950.0,103940.0,0.28069032]
[1748648835635,0.044479,103950.0,103940.0,0.2309015]
[1748648835848,0.02523918,103950.0,103940.0,0.24052131]
[1748648836068,0.034859,103950.0,103940.0,0.24052131]
[1748648837125,0.2368791,103950.0,103940.0,0.22128066]
[1748648837332,0.21763992,103950.0,103940.0,0.00962093]
[1748648837554,0.23363992,103950.0,103940.0,0.00962093]
[1748648837771,0.21166038,103940.0,103930.0,0.22130222]
[1748648837974,0.0288615,103940.0,103930.0,0.24054491]
[1748648838179,0.0288615,103940.0,103930.0,0.24054436]
[1748648838614,0.0096201,103940.0,103930.0,0.31381206]
[1748648838843,0.01924057,103940.0,103930.0,0.31381206]
[1748648839259,0.02886132,103940.0,103930.0,0.31381206]
[1748648839482,0.01923843,103950.0,103940.0,0.23090039]
[1748648839699,0.04809724,103950.0,103940.0,0.22128029]
[1748648839913,0.03847761,103950.0,103940.0,0.23090057]
[1748648840333,0.04809742,103950.0,103940.0,0.23090057]
[1748648840540,0.04147751,103950.0,103940.0,0.27632435]
[1748648840748,0.22425909,103950.0,103940.0,0.2570837]
[1748648840956,0.01261917,103950.0,103940.0,0.26670398]
[1748648841175,0.003,103950.0,103940.0,1.13515449]
[1748648841394,0.003,103950.0,103940.0,1.14665739]
[1748648841607,0.006,103950.0,103940.0,1.14665739]
[1748648842242,0.006,103950.0,103940.0,1.15049855]
[1748648842455,0.01923714,103960.0,103950.0,0.66023867]
[1748648842667,0.02885548,103960.0,103950.0,0.55386798]
[1748648842915,0.01923881,103950.0,103940.0,0.72952664]
[1748648843137,0.02885844,103950.0,103940.0,0.81920131]
[1748648843352,0.21163964,103950.0,103940.0,0.46040524]
[1748648843573,0.21163964,103950.0,103940.0,0.33850516]
[1748648843574,0.01923945,103950.0,103940.0,0.33850516]
[1748648843799,0.23136815,103950.0,103940.0,0.32888469]
[1748648844015,0.22174852,103950.0,103940.0,0.32702001]
[1748648844228,0.22174852,103950.0,103940.0,0.32602001]
[1748648844444,0.20928879,103950.0,103930.0,0.63876533]
[1748648844660,0.01924066,103940.0,103930.0,1.17729252]
[1748648845533,0.0096201,103940.0,103930.0,1.17729252]
[1748648845737,0.0004886,103950.0,103940.0,0.23090093]
[1748648845950,0.01972722,103950.0,103940.0,0.23090093]
[1748648846156,0.01972722,103950.0,103940.0,0.3041715]
[1748648846157,0.24098659,103950.0,103940.0,0.3041715]
[1748648846388,0.23136733,103950.0,103940.0,0.3041715]
[1748648846636,0.23136733,103950.0,103940.0,0.31379206]
[1748648846841,0.23136733,103950.0,103940.0,0.09251122]
[1748648847053,0.01924102,103940.0,103930.0,0.97627225]
[1748648847263,0.02886112,103940.0,103930.0,0.95677225]
[1748648847471,0.00962019,103940.0,103930.0,0.95377225]
[1748648847683,0.01972833,103950.0,103940.0,0.21165992]
[1748648847903,0.02934741,103950.0,103940.0,0.31579142]
[1748648848108,0.02934676,103950.0,103940.0,0.31379142]
[1748648848318,0.03896649,103950.0,103940.0,0.31379142]
[1748648848525,0.02934676,103950.0,103940.0,0.31379142]
[1748648848737,0.03896658,103950.0,103940.0,0.31579142]
[1748648848948,0.03896658,103950.0,103940.0,0.31779142]
[1748648849590,0.0004886,103950.0,103940.0,0.31779142]
[1748648849801,0.0004886,103950.0,103940.0,1.26296167]
[1748648850015,0.0004886,103950.0,103940.0,0.85486546]
[1748648850234,0.46862361,103970.0,103960.0,0.22123781]
[1748648850517,0.46862361,103970.0,103960.0,0.25183681]
[1748648850734,0.66098781,103970.0,103960.0,4.889e-05]
[1748648850949,0.67718781,103970.0,103960.0,4.889e-05]
[1748648851152,0.69308781,103970.0,103960.0,4.889e-05]
[1748648851363,0.69308781,103970.0,103960.0,0.00966797]
[1748648851578,0.68346993,103970.0,103960.0,0.02410198]
[1748648851797,0.67485178,103970.0,103960.0,0.03372106]
[1748648852221,0.67485178,103970.0,103960.0,0.04334005]
[1748648852650,0.67585178,103970.0,103960.0,0.04334005]
[1748648853331,0.67585178,103970.0,103960.0,4.889e-05]
[1748648853540,1.01585178,103970.0,103960.0,4.889e-05]
[1748648855231,1.44502608,103970.0,103960.0,4.889e-05]
[1748648856543,1.44498608,103970.0,103960.0,4.889e-05]
[1748648858381,1.45952693,103970.0,103960.0,4.889e-05]
[1748648861353,1.57256693,103970.0,103960.0,4.889e-05]
[1748648862528,1.23928693,103970.0,103960.0,4.889e-05]
[1748648862726,1.12624693,103970.0,103960.0,4.889e-05]
[1748648862937,1.09580608,103970.0,103960.0,4.889e-05]
[1748648863137,1.42900608,103970.0,103960.0,4.889e-05]
[1748648863967,1.41280608,103970.0,103960.0,4.889e-05]
[1748648864173,1.42910608,103970.0,103960.0,4.889e-05]
[1748648865598,0.002,103970.0,103960.0,0.67694652]
[1748648865798,0.002,103970.0,103960.0,0.42141766]
[1748648866049,0.02123483,103970.0,103960.0,0.42141766]
[1748648866385,0.02123473,103970.0,103960.0,0.42141766]
[1748648866777,0.03085224,103970.0,103960.0,0.43062714]
[1748648866979,0.02985224,103970.0,103960.0,0.43062714]
[1748648867183,0.02023473,103970.0,103960.0,0.43062714]
[1748648867500,0.01923473,103970.0,103960.0,0.43062714]
[1748648868246,0.00961732,103970.0,103960.0,0.43062714]
[1748648869037,0.01923492,103970.0,103960.0,0.3542074]
[1748648869248,0.01923492,103970.0,103960.0,0.3385074]
[1748648869447,0.22121681,103970.0,103960.0,0.00925837]
[1748648869674,0.22121681,103970.0,103960.0,0.02849644]
[1748648869861,0.22121681,103970.0,103960.0,0.24011581]
[1748648870176,0.02885363,103970.0,103960.0,0.24973396]
[1748648870366,0.02885363,103970.0,103960.0,0.2497334]
[1748648870566,0.22121681,103970.0,103960.0,0.23049645]
[1748648870770,0.02885345,103970.0,103960.0,0.24011488]
[1748648870989,0.22121663,103970.0,103960.0,0.22087774]
[1748648871203,0.02885345,103970.0,103960.0,0.24011479]
[1748648871445,0.03847151,103970.0,103960.0,0.24011479]
[1748648871813,0.03847151,103970.0,103960.0,0.23049636]
[1748648872027,0.89729359,103990.0,103970.0,0.21159847]
[1748648872028,0.04071556,103990.0,103970.0,0.21159847]
[1748648872304,0.33262968,103990.0,103980.0,0.20196191]
[1748648872508,0.66301262,103990.0,103980.0,0.21157905]
[1748648872698,0.67262819,103990.0,103980.0,0.21157905]
[1748648872908,0.01923326,103980.0,103970.0,0.22121579]
[1748648873113,0.01923326,103980.0,103970.0,0.21159902]
[1748648873114,0.03846697,103980.0,103970.0,0.21159902]
[1748648873313,0.23081239,103980.0,103970.0,0.30411024]
[1748648873532,0.23081295,103980.0,103970.0,0.21159912]
[1748648873711,0.22119609,103980.0,103970.0,0.22080252]
[1748648873928,0.22119609,103980.0,103970.0,0.2304203]
[1748648874691,0.22319609,103980.0,103970.0,0.2314203]
[1748648874834,0.22319609,103980.0,103970.0,0.2222169]
[1748648875038,0.22319609,103980.0,103970.0,0.23183459]
[1748648875469,0.002,103980.0,103970.0,0.36298505]
[1748648875677,0.002,103980.0,103970.0,0.77108126]
[1748648876259,0.002,103980.0,103970.0,0.87613564]
[1748648876772,0.001,103980.0,103970.0,0.87613564]
[1748648876968,0.001,103980.0,103970.0,0.87813564]
[1748648877172,0.00961547,103990.0,103980.0,0.22119461]
[1748648877374,0.01923113,103990.0,103980.0,0.31370583]
[1748648877573,0.01923011,104000.0,103990.0,0.22117398]
[1748648877775,0.54579347,104010.0,103990.0,0.21155832]
[1748648877955,0.00961566,103990.0,103980.0,0.79252537]
[1748648878153,0.00961556,103990.0,103980.0,0.79252537]
[1748648878790,0.00961556,103990.0,103980.0,0.80171781]
[1748648879527,0.21155832,103990.0,103980.0,0.00919244]
[1748648879739,0.24285832,103990.0,103980.0,0.00919244]
[1748648880207,0.21157858,103980.0,103970.0,0.21259818]
[1748648880422,0.21726191,103980.0,103970.0,0.01061815]
[1748648880629,0.21726191,103980.0,103970.0,0.21259939]
[1748648880837,0.21726191,103980.0,103970.0,0.27103498]
[1748648881049,0.21726191,103980.0,103970.0,0.21259921]
[1748648881259,0.21726191,103980.0,103970.0,0.22178966]